fUSD/lending_fUSD_20240701
["ID","MTS","AMOUNT","RATE_DAILY","PERIOD"]
[330798916,1719801050962,-500.0,0.00021917,4]
[330798917,1719801050971,-500.0,0.00021917,4]
[330798918,1719801050980,-500.0,0.00021917,4]
[330798919,1719801050990,-613.4262388,0.00021917,4]
[330798920,1719801050999,-500.0,0.00021917,4]
[330798921,1719801051009,-500.0,0.00021917,4]
[330798922,1719801051018,-500.0,0.00021917,4]
[330798923,1719801051028,-500.0,0.00021917,4]
[330798924,1719801051040,-500.0,0.00021917,4]
[330798925,1719801051050,-573.68156178,0.00021917,4]
[330798926,1719801051059,-500.0,0.00021917,4]
[330798927,1719801051068,-500.0,0.00021917,4]
[330798928,1719801051078,-500.0,0.00021917,4]
[330798929,1719801051087,-515.4486107,0.00021917,4]
[330798930,1719801051097,-500.0,0.00021917,4]
[330798931,1719801051106,-500.0,0.00021917,4]
[330798932,1719801051115,-500.0,0.00021917,4]
[330798933,1719801051125,-500.0,0.00021917,4]
[330798934,1719801051134,-489.58185189,0.00021917,4]
[330798935,1719801051144,-500.0,0.00021917,4]
[330798936,1719801051155,-500.0,0.00021917,4]
[330798937,1719801051165,-500.0,0.00021917,4]
[330798938,1719801051176,-500.0,0.00021917,4]
[330798939,1719801051185,-500.0,0.00021917,4]
[330798940,1719801051195,-500.0,0.00021917,4]
[330798941,1719801051204,-500.0,0.00021917,4]
[330798942,1719801051213,-500.0,0.00021917,4]
[330798943,1719801051224,-500.0,0.00021917,4]
[330798944,1719801051235,-370.11030446,0.00021917,4]
[330798945,1719801051245,-500.0,0.00021917,4]
[330798946,1719801051254,-500.0,0.00021917,4]
[330798947,1719801051263,-324.07136514,0.00021917,4]
[330798948,1719801051272,-534.40506681,0.00021917,4]
[330798949,1719801051282,-500.0,0.00021917,4]
[330798950,1719801051291,-500.0,0.00021917,4]
[330798951,1719801051301,-500.0,0.00021917,4]
[330798952,1719801051310,-594.96989793,0.00021917,4]
[330798953,1719801051319,-500.0,0.00021917,4]
[330798954,1719801051328,-500.0,0.00021917,4]
[330798955,1719801051338,-462.14579658,0.00021917,4]
[330798956,1719801051348,-513.32197937,0.00021917,4]
[330798957,1719801051357,-500.0,0.00021917,4]
[330798958,1719801051367,-150.0,0.00021917,2]
[330798959,1719801051376,-500.0,0.00021917,4]
[330798960,1719801051386,-300.0,0.00021917,2]
[330798961,1719801051395,-500.0,0.00021917,4]
[330798962,1719801051405,-450.0,0.00021917,2]
[330798963,1719801051414,-500.0,0.00021917,4]
[330798964,1719801051424,-251.36991653,0.00021917,2]
[330798965,1719801051434,-500.0,0.00021917,4]
[330798966,1719801051444,-500.0,0.00021917,4]
[330798967,1719801051454,-500.0,0.00021917,4]
[330798968,1719801051464,-530.09086766,0.00021917,4]
[330798969,1719801051473,-500.0,0.00021917,4]
[330798970,1719801051483,-500.0,0.00021917,4]
[330798971,1719801051492,-526.98785928,0.00021917,4]
[330798972,1719801051502,-500.0,0.00021917,4]
[330798973,1719801051511,-500.0,0.00021917,4]
[330798974,1719801051520,-500.0,0.00021917,4]
[330798975,1719801051529,-500.0,0.00021917,4]
[330798976,1719801051539,-500.0,0.00021917,4]
[330798977,1719801051549,-500.0,0.00021917,4]
[330798978,1719801051558,-500.0,0.00021917,4]
[330798979,1719801051567,-518.39862669,0.00021917,4]
[330798980,1719801051576,-500.0,0.00021917,4]
[330798981,1719801051586,-541.33288785,0.00021917,4]
[330798982,1719801051598,-500.0,0.00021917,4]
[330798983,1719801051607,-500.0,0.00021917,4]
[330798984,1719801051616,-500.0,0.00021917,4]
[330798985,1719801051625,-500.0,0.00021917,4]
[330798986,1719801051634,-604.29792129,0.00021917,4]
[330798987,1719801051643,-500.0,0.00021917,4]
[330798988,1719801051652,-503.64795991,0.00021917,4]
[330798989,1719801051664,-500.0,0.00021917,4]
[330798990,1719801051673,-500.0,0.00021917,4]
[330798991,1719801051682,-369.99842794,0.00021917,4]
[330798992,1719801051692,-533.55279224,0.00021917,4]
[330798993,1719801051703,-500.0,0.00021917,4]
[330798994,1719801051713,-320.96059203,0.00021917,4]
[330798995,1719801051722,-500.0,0.00021917,4]
[330798996,1719801051731,-500.0,0.00021917,4]
[330798997,1719801051742,-277.61138715,0.00021917,4]
[330798998,1719801051751,-500.0,0.00021917,4]
[330798999,1719801051760,-500.0,0.00021917,4]
[330799000,1719801051769,-500.0,0.00021917,4]
[330799001,1719801051779,-490.5198043,0.00021917,4]
[330799002,1719801051788,-188.7672503,0.00021917,4]
[330799003,1719801051797,-500.0,0.00021917,4]
[330799004,1719801051806,-500.0,0.00021917,4]
[330799005,1719801051815,-500.0,0.00021917,4]
[330799006,1719801051826,-397.51502206,0.00021917,4]
[330799007,1719801051835,-500.0,0.00021917,4]
[330799008,1719801051846,-524.91922893,0.00021917,4]
[330799009,1719801051855,-502.65983912,0.00021917,4]
[330799010,1719801051864,-579.42171386,0.00021917,4]
[330799011,1719801051874,-508.86130338,0.00021917,4]
[330799012,1719801051887,-500.0,0.00021917,4]
[330799013,1719801051896,-500.0,0.00021917,4]
[330799014,1719801051906,-182.4600896,0.00021917,4]
[330799015,1719801051916,-627.65002404,0.00021917,4]
[330799016,1719801051925,-500.0,0.00021917,4]
[330799017,1719801051935,-500.0,0.00021917,4]
[330799018,1719801051944,-500.0,0.00021917,4]
[330799019,1719801051953,-598.29653424,0.00021917,4]
[330799020,1719801051963,-339.95247665,0.00021917,4]
[330799021,1719801051973,-522.1841847,0.00021917,4]
[330799022,1719801051982,-502.22083762,0.00021917,4]
[330799023,1719801051999,-500.0,0.00021917,4]
[330799024,1719801052011,-500.0,0.00021917,4]
[330799025,1719801052020,-494.96594073,0.00021917,4]
[330799026,1719801052030,-500.0,0.00021917,4]
[330799027,1719801052040,-500.0,0.00021917,4]
[330799028,1719801052049,-500.0,0.00021917,4]
[330799029,1719801052058,-536.3716049,0.00021917,4]
[330799030,1719801052067,-217.68816201,0.00021917,4]
[330799031,1719801052077,-504.45322992,0.00021917,4]
[330799032,1719801052086,-500.0,0.00021917,2]
[330799033,1719801052096,-540.20703151,0.00021917,4]
[330799034,1719801052106,-500.0,0.00021917,2]
[330799035,1719801052115,-500.0,0.00021917,2]
[330799036,1719801052123,-500.0,0.00021917,2]
[330799037,1719801052133,-927.54647209,0.00021917,3]
[330799038,1719801052142,-499.69840731,0.00021917,2]
[330799039,1719801052152,-514.23016029,0.00021917,4]
[330799040,1719801052161,-500.0,0.00021917,4]
[330799041,1719801052170,-500.0,0.00021917,4]
[330799042,1719801052179,-500.0,0.00021917,4]
[330799043,1719801052188,-500.0,0.00021917,4]
[330799044,1719801052198,-376.32935037,0.00021917,4]
[330799045,1719801052207,-454.97983015,0.00021917,4]
[330799046,1719801052217,-521.2126428,0.00021917,4]
[330799047,1719801052226,-161.77632807,0.00021917,4]
[330799048,1719801052235,-500.0,0.00021917,4]
[330799049,1719801052244,-505.80866305,0.00021917,4]
[330799050,1719801052254,-500.0,0.00021917,4]
[330799051,1719801052264,-500.0,0.00021917,4]
[330799052,1719801052273,-500.0,0.00021917,4]
[330799053,1719801052367,-352.37931132,0.00021917,4]
[330799054,1719801052377,-500.0,0.00021917,4]
[330799055,1719801052386,-319.43522843,0.00021917,4]
[330799056,1719801052396,-500.0,0.00021917,4]
[330799057,1719801052405,-500.0,0.00021917,4]
[330799058,1719801052414,-215.1381503,0.00021917,4]
[330799059,1719801052423,-500.0,0.00021917,4]
[330799060,1719801052432,-500.0,0.00021917,4]
[330799061,1719801052442,-500.0,0.00021917,4]
[330799062,1719801052452,-500.0,0.00021917,4]
[330799063,1719801052461,-500.0,0.00021917,4]
[330799064,1719801052470,-289.57157241,0.00021917,4]
[330799065,1719801052479,-500.0,0.00021917,4]
[330799066,1719801052488,-500.0,0.00021917,4]
[330799067,1719801052497,-500.0,0.00021917,4]
[330799068,1719801052506,-500.0,0.00021917,4]
[330799069,1719801052515,-500.0,0.00021917,4]
[330799070,1719801052524,-282.59835193,0.00021917,4]
[330799071,1719801052533,-532.64056498,0.00021917,4]
[330799072,1719801052541,-500.0,0.00021917,4]
[330799073,1719801052550,-500.0,0.00021917,4]
[330799074,1719801052559,-490.85504883,0.00021917,4]
[330799075,1719801052568,-500.0,0.00021917,4]
[330799076,1719801052576,-500.94117935,0.00021917,4]
[330799077,1719801052585,-500.0,0.00021917,4]
[330799078,1719801052594,-500.0,0.00021917,4]
[330799079,1719801052603,-357.3630601,0.00021917,4]
[330799080,1719801052612,-503.41144539,0.00021917,4]
[330799081,1719801052621,-500.0,0.00021917,4]
[330799082,1719801052629,-500.0,0.00021917,4]
[330799083,1719801052638,-502.98907919,0.00021917,4]
[330799084,1719801052647,-500.0,0.00021917,4]
[330799085,1719801052656,-153.2971261,0.00021917,4]
[330799086,1719801052670,-502.33918346,0.00021917,4]
[330799087,1719801052679,-500.0,0.00021917,4]
[330799088,1719801052688,-255.00157402,0.00021917,4]
[330799089,1719801052697,-551.77328224,0.00021917,4]
[330799090,1719801052708,-755.71,0.00021917,4]
[330799091,1719801052717,-500.0,0.00021917,4]
[330799092,1719801052726,-755.71,0.00021917,4]
[330799093,1719801052736,-270.46038938,0.00021917,4]
[330799094,1719801052745,-755.71,0.00021917,4]
[330799095,1719801052755,-755.71,0.00021917,4]
[330799096,1719801052765,-500.10428563,0.00021917,4]
[330799097,1719801052774,-755.71,0.00021917,4]
[330799098,1719801052784,-755.71,0.00021917,4]
[330799099,1719801052793,-500.46099091,0.00021917,4]
[330799100,1719801052802,-755.71,0.00021917,4]
[330799101,1719801052811,-632.1738601,0.00021917,4]
[330799102,1719801052820,-599.90182639,0.00021917,4]
[330799103,1719801052829,-502.82017799,0.00021917,4]
[330799104,1719801052839,-505.24565766,0.00021917,4]
[330799105,1719801052849,-501.39784084,0.00021917,4]
[330799106,1719801052858,-555.52632947,0.00021917,4]
[330799107,1719801052867,-640.2,0.00021917,4]
[330799108,1719801052877,-500.0,0.00021917,4]
[330799109,1719801052886,-640.2,0.00021917,4]
[330799110,1719801052895,-500.0,0.00021917,4]
[330799111,1719801052904,-500.0,0.00021917,4]
[330799112,1719801052913,-500.0,0.00021917,4]
[330799113,1719801052923,-200.88826175,0.00021917,4]
[330799114,1719801052932,-640.2,0.00021917,4]
[330799115,1719801052942,-500.0,0.00021917,4]
[330799116,1719801052951,-386.53965218,0.00021917,4]
[330799117,1719801052961,-640.2,0.00021917,4]
[330799118,1719801052971,-640.2,0.00021917,4]
[330799119,1719801052980,-506.06173663,0.00021917,4]
[330799120,1719801052989,-348.10170579,0.00021917,4]
[330799121,1719801052998,-640.2,0.00021917,4]
[330799122,1719801053007,-640.2,0.00021917,4]
[330799123,1719801053017,-513.90944122,0.00021917,4]
[330799124,1719801053026,-640.2,0.00021917,4]
[330799125,1719801053037,-343.80501413,0.00021917,4]
[330799126,1719801053046,-500.0,0.00021917,4]
[330799127,1719801053056,-640.2,0.00021917,4]
[330799128,1719801053064,-500.0,0.00021917,4]
[330799129,1719801053074,-500.0,0.00021917,4]
[330799130,1719801053083,-640.2,0.00021917,4]
[330799131,1719801053094,-506.93063121,0.00021917,4]
[330799132,1719801053103,-500.0,0.00021917,4]
[330799133,1719801053111,-500.0,0.00021917,4]
[330799134,1719801053120,-500.0,0.00021917,4]
[330799135,1719801053130,-596.11,0.00021917,4]
[330799136,1719801053139,-500.0,0.00021917,4]
[330799137,1719801053148,-500.0,0.00021917,4]
[330799138,1719801053158,-500.0,0.00021917,4]
[330799139,1719801053167,-572.45782393,0.00021917,4]
[330799140,1719801053176,-500.0,0.00021917,4]
[330799141,1719801053185,-500.0,0.00021917,4]
[330799142,1719801053195,-503.15426907,0.00021917,4]
[330799143,1719801053204,-500.0,0.00021917,4]
[330799144,1719801053213,-500.0,0.00021917,4]
[330799145,1719801053222,-500.0,0.00021917,4]
[330799146,1719801053231,-500.0,0.00021917,4]
[330799147,1719801053240,-500.0,0.00021917,4]
[330799148,1719801053250,-500.0,0.00021917,4]
[330799149,1719801053259,-500.0,0.00021917,4]
[330799150,1719801053268,-500.0,0.00021917,4]
[330799151,1719801053277,-385.39846212,0.00021917,4]
[330799152,1719801053287,-500.0,0.00021917,4]
[330799153,1719801053296,-501.15341901,0.00021917,4]
[330799154,1719801053305,-500.0,0.00021917,4]
[330799155,1719801053314,-179.9145843,0.00021917,4]
[330799156,1719801053323,-503.55185623,0.00021917,4]
[330799157,1719801053332,-171.29707078,0.00021917,4]
[330799158,1719801053341,-500.0,0.00021917,4]
[330799159,1719801053351,-500.0,0.00021917,4]
[330799160,1719801053360,-191.55402516,0.00021917,4]
[330799161,1719801053368,-310.61934984,0.00021917,4]
[330799162,1719801053378,-500.0,0.00021917,4]
[330799163,1719801053387,-374.93132745,0.00021917,4]
[330799164,1719801053396,-495.83639832,0.00021917,4]
[330799165,1719801053406,-500.0,0.00021917,4]
[330799166,1719801053415,-500.81781525,0.00021917,4]
[330799167,1719801053423,-500.0,0.00021917,4]
[330799168,1719801053433,-220.58123625,0.00021917,4]
[330799169,1719801053442,-502.20440605,0.00021917,4]
[330799170,1719801053454,-500.0,0.00021917,4]
[330799171,1719801053464,-500.0,0.00021917,4]
[330799172,1719801053474,-500.0,0.00021917,4]
[330799173,1719801053483,-2819.67,0.00021917,4]
[330799174,1719801053492,-256.04991045,0.00021917,4]
[330799175,1719801053501,-500.0,0.00021917,4]
[330799176,1719801053510,-2819.67,0.00021917,4]
[330799177,1719801053519,-500.0,0.00021917,4]
[330799178,1719801053528,-500.0,0.00021917,4]
[330799179,1719801053538,-2819.67,0.00021917,4]
[330799180,1719801053547,-576.60900143,0.00021917,4]
[330799181,1719801053557,-500.0,0.00021917,4]
[330799182,1719801053566,-500.0,0.00021917,4]
[330799183,1719801053576,-500.0,0.00021917,4]
[330799184,1719801053586,-2819.67,0.00021917,4]
[330799185,1719801053599,-593.60582764,0.00021917,4]
[330799186,1719801053608,-500.0,0.00021917,4]
[330799187,1719801053617,-500.0,0.00021917,4]
[330799188,1719801053626,-2819.67,0.00021917,4]
[330799189,1719801053635,-2819.67,0.00021917,4]
[330799190,1719801053644,-500.0,0.00021917,4]
[330799191,1719801053653,-2819.67,0.00021917,4]
[330799192,1719801053667,-620.52877911,0.00021917,4]
[330799193,1719801053676,-2819.67,0.00021917,4]
[330799194,1719801053685,-2819.67,0.00021917,4]
[330799195,1719801053694,-414.54601559,0.00021917,4]
[330799196,1719801053704,-2819.67,0.00021917,4]
[330799197,1719801053713,-500.26766327,0.00021917,4]
[330799198,1719801053723,-500.0,0.00021917,4]
[330799199,1719801053733,-500.0,0.00021917,4]
[330799200,1719801053746,-550.86949382,0.00021917,4]
[330799201,1719801053756,-504.02289355,0.00021917,4]
[330799202,1719801053766,-613.82961879,0.00021917,4]
[330799203,1719801053775,-500.0,0.00021917,4]
[330799204,1719801053784,-298.11912211,0.00021917,4]
[330799205,1719801053794,-185.41772271,0.00021917,4]
[330799206,1719801053803,-503.57088168,0.00021917,4]
[330799207,1719801053812,-500.0,0.00021917,4]
[330799208,1719801053821,-500.0,0.00021917,4]
[330799209,1719801053830,-500.61766764,0.00021917,4]
[330799210,1719801053839,-500.0,0.00021917,4]
[330799211,1719801053854,-288.35160145,0.00021917,4]
[330799212,1719801053863,-500.0,0.00021917,4]
[330799213,1719801053873,-500.0,0.00021917,4]
[330799214,1719801053884,-508.34988612,0.00021917,4]
[330799215,1719801053893,-500.0,0.00021917,4]
[330799216,1719801053903,-285.97180354,0.00021917,4]
[330799217,1719801053912,-500.0,0.00021917,4]
[330799218,1719801053922,-328.1382281,0.00021917,4]
[330799219,1719801053932,-502.55662547,0.00021917,4]
[330799220,1719801053942,-500.0,0.00021917,4]
[330799221,1719801053951,-500.0,0.00021917,4]
[330799222,1719801053961,-500.0,0.00021917,4]
[330799223,1719801053971,-500.0,0.00021917,4]
[330799224,1719801053982,-500.0,0.00021917,4]
[330799225,1719801053992,-543.18045517,0.00021917,4]
[330799226,1719801054002,-500.0,0.00021917,4]
[330799227,1719801054012,-500.0,0.00021917,4]
[330799228,1719801054022,-500.0,0.00021917,4]
[330799229,1719801054032,-170.61537658,0.00021917,4]
[330799230,1719801054043,-500.0,0.00021917,4]
[330799231,1719801054054,-500.0,0.00021917,4]
[330799232,1719801054065,-500.0,0.00021917,4]
[330799233,1719801054075,-500.0,0.00021917,4]
[330799234,1719801054086,-500.0,0.00021917,4]
[330799235,1719801054101,-500.0,0.00021917,4]
[330799236,1719801054111,-500.0,0.00021917,4]
[330799237,1719801054122,-500.0,0.00021917,4]
[330799238,1719801054132,-500.0,0.00021917,4]
[330799239,1719801054141,-500.0,0.00021917,4]
[330799240,1719801054151,-500.0,0.00021917,4]
[330799241,1719801054161,-500.0,0.00021917,4]
[330799242,1719801054171,-540.64680533,0.00021917,4]
[330799243,1719801054181,-500.0,0.00021917,4]
[330799244,1719801054191,-500.0,0.00021917,4]
[330799245,1719801054201,-500.44224037,0.00021917,4]
[330799246,1719801054212,-500.0,0.00021917,4]
[330799247,1719801054223,-500.0,0.00021917,4]
[330799248,1719801054232,-500.0,0.00021917,4]
[330799249,1719801054242,-339.37582077,0.00021917,4]
[330799250,1719801054252,-500.0,0.00021917,4]
[330799251,1719801054262,-500.0,0.00021917,4]
[330799252,1719801054272,-534.7753273,0.00021917,4]
[330799253,1719801054282,-478.70565255,0.00021917,4]
[330799254,1719801054292,-501.37513044,0.00021917,4]
[330799255,1719801054302,-502.24287139,0.00021917,4]
[330799256,1719801054312,-500.0,0.00021917,4]
[330799257,1719801054322,-578.34384246,0.00021917,4]
[330799258,1719801054331,-500.0,0.00021917,4]
[330799259,1719801054341,-500.0,0.00021917,4]
[330799260,1719801054355,-310.91839946,0.00021917,4]
[330799261,1719801054366,-291.04783737,0.00021917,4]
[330799262,1719801054375,-500.0,0.00021917,4]
[330799263,1719801054386,-506.72751724,0.00021917,4]
[330799264,1719801054395,-500.0,0.00021917,4]
[330799265,1719801054405,-500.0,0.00021917,4]
[330799266,1719801054416,-183.91440684,0.00021917,4]
[330799267,1719801054426,-569.4538873,0.00021917,4]
[330799268,1719801054438,-500.0,0.00021917,4]
[330799269,1719801054448,-308.4744625,0.00021917,4]
[330799270,1719801054458,-525.59972537,0.00021917,4]
[330799271,1719801054468,-500.0,0.00021917,4]
[330799272,1719801054477,-500.0,0.00021917,4]
[330799273,1719801054487,-500.0,0.00021917,4]
[330799274,1719801054497,-500.0,0.00021917,4]
[330799275,1719801054506,-501.68634202,0.00021917,4]
[330799276,1719801054516,-528.77357571,0.00021917,4]
[330799277,1719801054526,-500.0,0.00021917,4]
[330799278,1719801054535,-502.62292581,0.00021917,4]
[330799279,1719801054545,-500.0,0.00021917,4]
[330799280,1719801054555,-500.0,0.00021917,4]
[330799281,1719801054565,-500.0,0.00021917,4]
[330799282,1719801054575,-500.0,0.00021917,4]
[330799283,1719801054584,-500.0,0.00021917,4]
[330799284,1719801054596,-500.0,0.00021917,4]
[330799285,1719801054606,-500.0,0.00021917,4]
[330799286,1719801054616,-312.28868925,0.00021917,4]
[330799287,1719801054625,-500.0,0.00021917,4]
[330799288,1719801054635,-500.0,0.00021917,4]
[330799289,1719801054644,-401.39668262,0.00021917,4]
[330799290,1719801054654,-500.0,0.00021917,4]
[330799291,1719801054668,-593.43289729,0.00021917,4]
[330799292,1719801054678,-500.0,0.00021917,4]
[330799293,1719801054687,-500.0,0.00021917,4]
[330799294,1719801054697,-500.0,0.00021917,4]
[330799295,1719801054707,-500.0,0.00021917,4]
[330799296,1719801054718,-223.7961812,0.00021917,4]
[330799297,1719801054728,-500.0,0.00021917,4]
[330799298,1719801054738,-500.0,0.00021917,4]
[330799299,1719801054750,-500.0,0.00021917,4]
[330799300,1719801054760,-500.0,0.00021917,4]
[330799301,1719801054771,-192.02795387,0.00021917,4]
[330799302,1719801054781,-500.0,0.00021917,4]
[330799303,1719801054791,-500.0,0.00021917,4]
[330799304,1719801054801,-500.0,0.00021917,4]
[330799305,1719801054811,-500.0,0.00021917,4]
[330799306,1719801054821,-500.0,0.00021917,4]
[330799307,1719801054830,-288.63905894,0.00021917,4]
[330799308,1719801054841,-500.0,0.00021917,4]
[330799309,1719801054856,-500.0,0.00021917,4]
[330799310,1719801054866,-500.0,0.00021917,4]
[330799311,1719801054876,-500.0,0.00021917,4]
[330799312,1719801054889,-500.0,0.00021917,4]
[330799313,1719801054900,-500.0,0.00021917,4]
[330799314,1719801054909,-502.47650558,0.00021917,4]
[330799315,1719801054919,-500.0,0.00021917,4]
[330799316,1719801054930,-500.0,0.00021917,4]
[330799317,1719801054940,-500.0,0.00021917,4]
[330799318,1719801054950,-501.14587476,0.00021917,4]
[330799319,1719801054960,-500.0,0.00021917,4]
[330799320,1719801054970,-500.0,0.00021917,4]
[330799321,1719801054980,-537.97903132,0.00021917,4]
[330799322,1719801054990,-500.0,0.00021917,4]
[330799323,1719801055001,-500.0,0.00021917,4]
[330799324,1719801055012,-500.0,0.00021917,4]
[330799325,1719801055022,-500.0,0.00021917,4]
[330799326,1719801055032,-351.93370987,0.00021917,4]
[330799327,1719801055042,-500.0,0.00021917,4]
[330799328,1719801055053,-500.0,0.00021917,4]
[330799329,1719801055063,-500.0,0.00021917,4]
[330799330,1719801055073,-500.0,0.00021917,4]
[330799331,1719801055084,-500.0,0.00021917,4]
[330799332,1719801055097,-502.09511719,0.00021917,4]
[330799333,1719801055107,-500.0,0.00021917,4]
[330799334,1719801055117,-500.0,0.00021917,4]
[330799335,1719801055127,-500.0,0.00021917,4]
[330799336,1719801055137,-271.43280759,0.00021917,4]
[330799337,1719801055148,-500.0,0.00021917,4]
[330799338,1719801055158,-500.0,0.00021917,4]
[330799339,1719801055168,-500.0,0.00021917,4]
[330799340,1719801055179,-500.0,0.00021917,4]
[330799341,1719801055188,-500.0,0.00021917,4]
[330799342,1719801055199,-500.0,0.00021917,4]
[330799343,1719801055209,-500.0,0.00021917,4]
[330799344,1719801055218,-252.83204382,0.00021917,4]
[330799345,1719801055228,-2346.92,0.00021918,2]
[330799346,1719801055238,-355.62,0.00021918,2]
[330799347,1719801055247,-367.9,0.00021918,2]
[330799348,1719801055259,-500.0,0.00021918,2]
[330799349,1719801055268,-500.0,0.00021918,2]
[330799350,1719801055278,-500.0,0.00021918,2]
[330799351,1719801055288,-500.0,0.00021918,2]
[330799352,1719801055297,-500.0,0.00021918,2]
[330799353,1719801055307,-500.0,0.00021918,2]
[330799354,1719801055317,-150.0,0.00021918,2]
[330799355,1719801055327,-150.0,0.00021918,2]
[330799356,1719801055337,-150.0,0.00021918,2]
[330799357,1719801055354,-345.90348,0.00021918,2]
[330799358,1719801055364,-150.0,0.0002192,10]
[330799359,1719801055373,-152.28709695,0.00021923,2]
[330799360,1719801055383,-150.0,0.00021945,2]
[330799361,1719801055395,-166.66666667,0.00021946,2]
[330799362,1719801055405,-1613.0,0.00021946,2]
[330799363,1719801055415,-150.0,0.0002195,2]
[330799364,1719801055426,-153.4125173,0.0002195,2]
[330799365,1719801055437,-150.0,0.00021955,10]
[330799366,1719801055447,-272.15880157,0.00021955,10]
[330799367,1719801055456,-150.0,0.0002196,2]
[330799368,1719801055466,-150.0,0.00021961,10]
[330799369,1719801055476,-150.0,0.00021962,2]
[330799370,1719801055486,-3171.8613027,0.00021964,2]
[330799371,1719801055495,-150.0,0.00021968,10]
[330799372,1719801055505,-209.62039437,0.00021968,2]
[330799373,1719801055515,-18635.62955299,0.00021969,2]
[330799374,1719801055525,-500.0,0.0002197,2]
[330799375,1719801055535,-295.0,0.0002197,30]
[330799376,1719801055544,-300.0,0.0002197,2]
[330799377,1719801055554,-150.0,0.0002197,2]
[330799378,1719801055565,-1518.66105453,0.00021975,2]
[330799379,1719801055576,-1275.45035502,0.00021976,2]
[330799380,1719801055585,-295.0,0.0002198,30]
[330799381,1719801055597,-188.17121959,0.00021983,2]
[330799382,1719801055607,-155.0,0.00021986,2]
[330799383,1719801055617,-155.0,0.00021986,2]
[330799384,1719801055627,-295.0,0.0002199,30]
[330799385,1719801055636,-150.0,0.00021994,2]
[330799386,1719801055645,-150.0,0.00021998,10]
[330799387,1719801055655,-157.09904992,0.00021999,2]
[330799388,1719801055669,-500.0,0.00021999,4]
[330799389,1719801055679,-500.0,0.00021999,4]
[330799390,1719801055688,-644.29489707,0.00021999,4]
[330799391,1719801055698,-500.0,0.00021999,4]
[330799392,1719801055709,-500.0,0.00021999,4]
[330799393,1719801055719,-500.0,0.00021999,4]
[330799394,1719801055729,-529.10011446,0.00021999,4]
[330799395,1719801055740,-755.71,0.00021999,4]
[330799396,1719801055751,-640.2,0.00021999,4]
[330799397,1719801055762,-500.0,0.00021999,4]
[330799398,1719801055772,-500.0,0.00021999,4]
[330799399,1719801055783,-2819.67,0.00021999,4]
[330799400,1719801055793,-500.0,0.00021999,4]
[330799401,1719801055803,-500.0,0.00021999,4]
[330799402,1719801055814,-500.0,0.00021999,4]
[330799403,1719801055823,-500.0,0.00021999,4]
[330799404,1719801055833,-500.0,0.00021999,4]
[330799405,1719801055845,-500.0,0.00021999,4]
[330799406,1719801055855,-500.0,0.00021999,4]
[330799407,1719801055865,-500.0,0.00021999,4]
[330799408,1719801055875,-18745.47911745,0.00022,2]
[330799409,1719801055885,-900.0,0.00022,23]
[330799410,1719801055895,-947.0,0.00022,10]
[330799411,1719801055905,-174355.97382622,0.00022,2]
[330799412,1719801055914,-339.41549917,0.00022,7]
[330799413,1719801055924,-292.03884472,0.00022,2]
[330799414,1719801055934,-860.00253574,0.00022,2]
[330799415,1719801055944,-1267.8840363,0.00022,2]